Cogmind - Beta 17.1 @@@ ROGUE MODE // 2026.09.01 @ 22:20:47 Player: Tuuli Result: Destroyed by G-67 Veteran with Plasma Rifle Performance ------------- Evolutions (5) 2500 Regions Visited (14) 2800 Robots Destroyed (42) 210 Value Destroyed (1006) 1006 Prototype IDs (41) 820 Alien Tech Used (2) 400 Bonus (1100) 1100 TOTAL SCORE: 8836 Bonus ------- Entered DSFs 500 Aligned with FarCom 300 Met Zhirov 300 Cogmind --------- Core Integrity 0/1000 Matter 240/300 Energy 100/100 System Corruption 0% Temperature Cool (12) Movement Core (50) Location -4/Proximity Caves Parts ------- > --- POWER (2) -------- (None) > --- PROPULSION (7) --- (None) > --- UTILITY (6) ------ Advanced Melee Analysis Suite Advanced Melee Analysis Suite Advanced Hacking Suite Advanced Hacking Suite > --- WEAPON (2) ------- Katana > --- INVENTORY (5) ---- Light Angular Momentum Engine Advanced Melee Analysis Suite Hardened Medium Armor Plating Improved Medium Armor Plating Railgun Peak State ------------ > --- POWER ------------ Backup Power I Heavy Ion Engine > --- PROPULSION ------- Improved Flight Unit Improved Flight Unit Improved Flight Unit Flying Fortress v7 > --- UTILITY ---------- Large Storage Unit Advanced Melee Analysis Suite Advanced Melee Analysis Suite Advanced Melee Analysis Suite Hacking Suite Advanced Hacking Suite > --- WEAPON ----------- Shock Maul Chainsword > --- INVENTORY -------- Light Angular Momentum Engine Light Fission Core VTOL Module Improved Flight Unit Cooled Cesium-ion Thruster Nuclear Pulse Array Advanced Melee Analysis Suite Advanced Melee Analysis Suite Hardened Medium Armor Plating Improved Hacking Suite Advanced Hacking Suite Katana Chainsword [Rating: 86] Favorites ----------- Power Heavy Ion Engine Engine Heavy Ion Engine Power Core Light Fission Core Reactor Fusion Reactor Propulsion Improved Flight Unit Treads Light Treads Flight Unit Improved Flight Unit Utility Advanced Melee Analysis Suite Device Seismic Detector Storage Large Storage Unit Processor Advanced Melee Analysis Suite Hackware Hacking Suite Protection Hardened Medium Armor Plating Weapon EM Shotgun Energy Gun EM Shotgun Ballistic Gun Assault Rifle Launcher Grenade Launcher Impact Weapon Shock Maul Slashing Weapon Chainsword Build | -11 -10 -10 -10 -9 -8 -8 -7 -7 -6 -5 -5 -5 -5 -4 ------- Run | Yrd Mat Min Exi Min Mat Sto Fac DSF Fac Fac Upp Upp Zhi Pro Slots Evolved 10 | . . . . . 4 . 2 . 2 2 . . . . Power 1 | . . . . . . . 1 . . . . . . . Propulsion 5 | . . . . . 3 . 1 . 1 . . . . . Utility 4 | . . . . . 1 . . . 1 2 . . . . Weapon . | . . . . . . . . . . . . . . . Parts Attached 59 | 7 4 1 2 . 8 4 3 1 8 5 6 . 5 5 Power 8 | 1 1 . . . 1 1 . 1 . . 1 . 1 1 Engine 5 | 1 1 . . . 1 1 . 1 . . . . . . Core 2 | . . . . . . . . . . . 1 . . 1 Reactor 1 | . . . . . . . . . . . . . 1 . Propulsion 13 | 2 . . 1 . 1 1 1 . 1 . 5 . . 1 Treads 3 | 2 . . 1 . . . . . . . . . . . Leg . | . . . . . . . . . . . . . . . Wheel . | . . . . . . . . . . . . . . . Hover . | . . . . . . . . . . . . . . . Flight 10 | . . . . . 1 1 1 . 1 . 5 . . 1 Utility 23 | 2 1 . 1 . 1 2 2 . 4 5 . . 4 1 Device 1 | 1 . . . . . . . . . . . . . . Storage 5 | 1 1 . 1 . 1 . . . . . . . 1 . Processor 7 | . . . . . . . . . 4 2 . . . 1 Hackware 5 | . . . . . . 1 1 . . 1 . . 2 . Protection 5 | . . . . . . 1 1 . . 2 . . 1 . Artifact . | . . . . . . . . . . . . . . . Weapon 15 | 2 2 1 . . 5 . . . 3 . . . . 2 Energy Gun 5 | 1 2 1 . . 1 . . . . . . . . . Energy Cannon . | . . . . . . . . . . . . . . . Ballistic Gun 2 | 1 . . . . . . . . . . . . . 1 Ballistic Cannon . | . . . . . . . . . . . . . . . Launcher 1 | . . . . . 1 . . . . . . . . . Special Weapon . | . . . . . . . . . . . . . . . Impact Weapon 2 | . . . . . 1 . . . 1 . . . . . Slashing Weapon 5 | . . . . . 2 . . . 2 . . . . 1 Piercing Weapon . | . . . . . . . . . . . . . . . Special Melee Weapon . | . . . . . . . . . . . . . . . Unidentified Prototypes 10 | . 1 . . . . 2 . . 1 . 1 . 5 . Parts Lost 30 | . . 1 . 5 . 1 . 1 . 1 6 . . 15 Power 6 | . . . . 1 . . . . . . 2 . . 3 Propulsion 12 | . . . . 2 . . . . . . 4 . . 6 Utility 6 | . . . . . . 1 . 1 . 1 . . . 3 Weapon 6 | . . 1 . 2 . . . . . . . . . 3 Highest Loss Streak 14 | . . 1 . 5 . 1 . 1 . 1 5 . . 14 To Critical Strikes . | . . . . . . . . . . . . . . . Average Backups 10 | 2 7 9 8 8 7 13 12 12 14 13 11 10 10 10 Power 2 | . 2 3 2 3 2 2 2 2 2 2 1 1 1 2 Propulsion 1 | 1 2 3 1 1 . . 2 2 1 3 2 . . . Utility 2 | . . 1 1 2 1 3 1 2 4 4 5 6 5 4 Weapon 3 | . 2 2 2 2 3 7 5 5 5 3 2 3 3 3 Tool/Special . | . . . . . . . . . . . . . . . Unused Backups 18 | . 1 . 2 . . 2 . 2 3 5 . . . 3 Power 4 | . 1 . . . . . . . 1 1 . . . 1 Propulsion 2 | . . . 2 . . . . . . . . . . . Utility 6 | . . . . . . 1 . . 1 2 . . . 2 Weapon 6 | . . . . . . 1 . 2 1 2 . . . . Tool/Special . | . . . . . . . . . . . . . . . Average Slot Usage (%) 85 | . 100 100 100 99 60 63 69 64 76 81 82 81 79 64 Engine 9 | . 14 14 14 14 9 9 7 7 9 11 5 . . . Treads 11 | . 28 28 28 28 . . . . . . . . . . Flight 12 | . . . . . 8 10 23 23 26 23 27 29 29 19 Device 6 | . 14 14 14 14 9 . . . . . . . . . Storage 10 | . 14 14 14 14 17 18 10 7 6 5 5 5 5 5 Processor 6 | . . . . . . . . . 12 17 17 17 13 11 Hackware 4 | . . . . . . 6 4 7 6 5 11 11 11 15 Energy Gun 12 | . 26 28 28 27 4 . . . . . . . . . Impact Weapon 1 | . . . . . 2 . . . . 5 5 5 5 1 Slashing Weapon 4 | . . . . . 2 18 15 15 11 5 5 4 5 1 Peak Build Rating 86 | 7 12 12 15 15 47 50 55 55 74 86 86 70 77 74 Average Rating 41 | 5 11 11 13 14 42 48 54 54 68 82 76 69 70 57 On Entrance 42 | . 7 12 12 15 6 47 50 55 55 74 86 70 70 74 Avg Prop Armor Cover (%) . | . . . . . . . . . . . . . . . Naked Turns . | . . . . . . . . . . . . . . . Heaviest Build 43 | 15 25 25 35 35 38 38 38 35 35 43 35 33 33 33 Greatest Support 65 | 40 40 40 40 40 50 55 60 60 65 65 65 33 33 33 Greatest Overweight (x) 10 | . . . . 6 . . . . . . 5 . . 10 Average Overweight (x) . | . . . . . . . . . . . . . . . Largest Inventory Capacity 15 | 8 10 10 15 15 15 15 15 15 15 15 15 15 15 15 Average Capacity 12 | 7 8 10 10 15 15 15 14 15 15 15 15 15 15 14 Most Carried 15 | 5 10 10 11 12 13 15 13 15 15 15 14 12 13 13 Average Carried 10 | 3 7 9 9 11 6 13 12 12 14 14 11 10 10 10 Final Capacity 15 | 8 10 10 15 15 15 15 15 15 15 15 15 15 15 5 Final Carried 15 | 3 10 9 11 12 13 14 13 15 15 14 10 10 10 5 Class Distribution -------------------- 61% | Mutant 19% | Sprinter 17% | Hacker-Sprinter Dominant Class ---------------- Mutant | -10/Materials Mutant | -10/Mines Mutant | -10/Exiles Mutant | -9/Mines Mutant | -8/Materials Mutant | -8/Storage Mutant | -7/Factory Mutant | -7/DSF Sprinter | -6/Factory Sprinter | -5/Factory Hacker-Sprinter | -5/Upper Caves Hacker-Sprinter | -5/Upper Caves Hacker-Sprinter | -5/Zhirov Hacker-Sprinter | -4/Proximity Caves Resources | -11 -10 -10 -10 -9 -8 -8 -7 -7 -6 -5 -5 -5 -5 -4 ----------- Run | Yrd Mat Min Exi Min Mat Sto Fac DSF Fac Fac Upp Upp Zhi Pro Matter Collected 1001 | 278 185 18 . 20 60 50 24 . 151 40 60 20 . 95 Remotely . | . . . . . . . . . . . . . . . Salvage Created 1373 | 73 260 60 . . 90 53 24 . 261 383 89 . . 80 Parts 67 | 7 13 3 . . 6 4 4 . 7 14 5 . . 4 Haulers Intercepted 2 | . 1 . . . . . . . . 1 . . . . Recyclers Shooed . | . . . . . . . . . . . . . . . Parts Field Recycled . | . . . . . . . . . . . . . . . Retrieved Matter . | . . . . . . . . . . . . . . . Parts Self-Destructed 6 | . . . . . . . . . . . 5 . . 1 Prevented 1 | . . . . . . . . . . . . . . 1 Parts Restored . | . . . . . . . . . . . . . . . Kills | -11 -10 -10 -10 -9 -8 -8 -7 -7 -6 -5 -5 -5 -5 -4 ------- Run | Yrd Mat Min Exi Min Mat Sto Fac DSF Fac Fac Upp Upp Zhi Pro Combat Hostiles Destroyed 24 | . 5 1 . . 1 1 . . 3 5 4 . . 4 Melee 14 | . . . . . . 1 . . 3 4 4 . . 2 Guns 5 | . 3 1 . . 1 . . . . . . . . . AOE 2 | . 2 . . . . . . . . . . . . . Classes Destroyed 12 | 1 5 . . . 1 . . . 2 2 . . . 1 Worker 1 | . . . . . . . . . . 1 . . . . Tunneler 4 | 3 . . . . . . . . . 1 . . . . Hauler 2 | . 1 . . . . . . . . 1 . . . . Recycler 2 | . 1 . . . . . . . 1 . . . . . Operator 3 | . 1 . . . 1 . 1 . . . . . . . Drone 1 | . . . . . . . . . . . . . . 1 Watcher 6 | . . . . . . . . . . 6 . . . . Swarmer 15 | . 3 . . . . . . . . 5 4 . . 3 Grunt 4 | . 2 1 . . . . . . 1 . . . . . Duelist 1 | . . . . . . . . . 1 . . . . . Sentry 2 | . . . . . 1 1 . . . . . . . . Programmer 1 | . . . . . . . . . 1 . . . . . Best Kill Streak 4 | 3 3 1 . . 1 1 1 . 2 4 4 . . 4 Combat Bots Only 4 | . 3 1 . . 1 1 . . 2 4 4 . . 4 Max Kills in Single Turn 2 | 1 2 1 . . 1 1 1 . 1 1 1 . . 1 Gunslinging . | . . . . . . . . . . . . . . . Exploded 2 | . 2 . . . . . . . . . . . . . Melee 1 | . . . . . . 1 . . 1 1 1 . . 1 Uniques/NPCs Destroyed . | . . . . . . . . . . . . . . . Combat | -11 -10 -10 -10 -9 -8 -8 -7 -7 -6 -5 -5 -5 -5 -4 -------- Run | Yrd Mat Min Exi Min Mat Sto Fac DSF Fac Fac Upp Upp Zhi Pro Hostile Shots Fired 384 | . 35 5 . 15 8 66 . 11 34 33 41 4 . 132 Missed 133 | . 13 1 . 1 3 28 . 2 20 17 10 1 . 37 Hits 251 | . 22 4 . 14 5 38 . 9 14 16 31 3 . 95 Melee 4 | . . . . . . 1 . . 3 . . . . . Projectile 247 | . 22 4 . 14 5 37 . 9 11 16 31 3 . 95 AOE 14 | . . . . 14 . . . . . . . . . . Critical Strikes 10 | . . . . . 1 . . 2 1 . 1 . . 5 Actively Blocked 3 | . . . . . . . . . . . . . . 3 Damage Taken 4780 | . 258 61 . 562 149 527 . 294 254 247 469 19 . 1940 Core 1259 | . 57 . . 126 36 58 . . 24 33 104 13 . 808 Absorbed by Shields . | . . . . . . . . . . . . . . . Redirected to Shielding 258 | . . . . . . . . . . 101 . . . 157 Core Remaining (%) 81 | 100 . . . 26 . 82 . 100 97 . . . . . Volleys Fired 32 | 7 11 4 . . 5 . . . . . . . . 5 Largest 2 | 2 2 2 . . 2 . . . . . . . . 1 Hottest 90 | 70 90 90 . . 75 . . . . . . . . 35 Shots Fired 55 | 14 22 8 . . 6 . . . . . . . . 5 Gun 54 | 14 22 8 . . 5 . . . . . . . . 5 Cannon . | . . . . . . . . . . . . . . . Launcher 1 | . . . . . 1 . . . . . . . . . Special . | . . . . . . . . . . . . . . . Kinetic 12 | 7 . . . . . . . . . . . . . 5 Thermal 7 | 7 . . . . . . . . . . . . . . Explosive 1 | . . . . . 1 . . . . . . . . . Electromagnetic 35 | . 22 8 . . 5 . . . . . . . . . Robot Hit Streak 19 | 2 7 8 . . 19 . . . . . . . . 2 Robot Miss Streak 3 | 1 3 3 . . . . . . . . . . . 1 Penetration Max . | . . . . . . . . . . . . . . . Secondary Targets 1 | . 1 . . . . . . . . . . . . . Max Gunslinging Chain 1 | . 1 . . . . . . . . . . . . . Shots Hit Robots 94 | 8 17 6 . . 7 4 1 . 14 19 7 . . 11 Core Hits 40 | 3 13 4 . . 4 1 1 . 3 5 4 . . 2 Critical Kills 1 | . . . . . . . . . . 1 . . . . Critical Parts Destroyed 7 | . . . . . . . . . . 4 1 . . 2 Critical Strikes 12 | 1 . . . . . . . . 1 5 1 . . 4 Burn 1 | 1 . . . . . . . . . . . . . . Smash 8 | . . . . . . . . . . 5 1 . . 2 Sever 3 | . . . . . . . . . 1 . . . . 2 Melee Attacks 81 | . . . . . 6 6 1 . 20 25 12 1 . 10 Impact 43 | . . . . . 2 . . . 6 20 9 1 . 5 Slashing 38 | . . . . . 4 6 1 . 14 5 3 . . 5 Piercing . | . . . . . . . . . . . . . . . Sneak Attacks 6 | . . . . . . 1 1 . 1 3 . . . . Combat Hostiles . | . . . . . . . . . . . . . . . Follow-up Attacks 10 | . . . . . . . . . 4 2 3 . . 1 Damage Inflicted 3891 | 128 412 106 . 5 132 175 76 . 616 1384 357 . . 500 Guns 609 | 128 225 91 . . 76 . . . . . . . . 89 Cannons . | . . . . . . . . . . . . . . . Explosions 203 | . 187 . . . 16 . . . . . . . . . Melee 3059 | . . . . . 40 175 76 . 616 1384 357 . . 411 Ramming 20 | . . 15 . 5 . . . . . . . . . . Kinetic 140 | 51 . . . . . . . . . . . . . 89 Thermal 264 | 77 187 . . . . . . . . . . . . . Explosive 16 | . . . . . 16 . . . . . . . . . Electromagnetic 392 | . 225 91 . . 76 . . . . . . . . . Impact 1862 | . . . . . . . . . 116 1302 233 . . 211 Slashing 1197 | . . . . . 40 175 76 . 500 82 124 . . 200 Piercing . | . . . . . . . . . . . . . . . Highest Corruption 1 | . . . . . . 1 . . 1 . . . . . Average Corruption 1 | . . . . . . 1 . . 1 . . . . . Corruption Purged . | . . . . . . . . . . . . . . . Corruption Blocked . | . . . . . . . . . . . . . . . Overload Shots . | . . . . . . . . . . . . . . . Overflow Damage 1029 | . 5 . . . . . . . 162 590 86 . . 186 Projectiles . | . . . . . . . . . . . . . . . Explosions 5 | . 5 . . . . . . . . . . . . . Melee 1024 | . . . . . . . . . 162 590 86 . . 186 Knockbacks 5 | . . . . . . . . . 1 4 . . . . Impact 5 | . . . . . . . . . 1 4 . . . . Kinetic . | . . . . . . . . . . . . . . . Secondary . | . . . . . . . . . . . . . . . Self-Inflicted Damage 112 | . 73 . . . 39 . . . . . . . . . Shots 3 | . 2 . . . 1 . . . . . . . . . Rammed 3 | . . 2 . 1 . . . . . . . . . . Targets Rammed 3 | . . 2 . 1 . . . . . . . . . . Kicked . | . . . . . . . . . . . . . . . Crushed . | . . . . . . . . . . . . . . . Highest Temperature 149 | 36 98 149 . . 107 7 . . . . 3 . . 23 Average Temperature 45 | 17 46 76 . . 64 5 . . . . 3 . . 9 Received Heat Transfer 814 | . 42 36 . . 45 171 . 45 30 . 9 . . 436 Siege Activations . | . . . . . . . . . . . . . . . Martial Activations . | . . . . . . . . . . . . . . . Shielding Activations . | . . . . . . . . . . . . . . . Robots Disrupted . | . . . . . . . . . . . . . . . Combat Hostiles . | . . . . . . . . . . . . . . . Robots Corrupted 6 | . . . . . . . . . 1 3 . . . 2 Combat Hostiles 3 | . . . . . . . . . . 1 . . . 2 Parts Fried 11 | . . . . . . . . . 1 7 1 . . 2 Impact Corruptions 22 | . . . . . . . . . 2 13 2 . . 5 Robots Melted . | . . . . . . . . . . . . . . . Combat Hostiles . | . . . . . . . . . . . . . . . Parts Melted 1 | 1 . . . . . . . . . . . . . . Heat Transferred 446 | 296 150 . . . . . . . . . . . . . Parts Sabotaged . | . . . . . . . . . . . . . . . Parts Stolen . | . . . . . . . . . . . . . . . Parts Stripped . | . . . . . . . . . . . . . . . Power Chain Reactions 3 | . 3 . . . . . . . . . . . . . Alert | -11 -10 -10 -10 -9 -8 -8 -7 -7 -6 -5 -5 -5 -5 -4 ------- Run | Yrd Mat Min Exi Min Mat Sto Fac DSF Fac Fac Upp Upp Zhi Pro Maximum Alert Level . | . . . . . . . . . . . . . . . Low Security (%) 100 | 100 100 100 . 100 100 100 100 100 100 100 . . . . Level 1 . | . . . . . . . . . . . . . . . Level 2 . | . . . . . . . . . . . . . . . Level 3 . | . . . . . . . . . . . . . . . Level 4 . | . . . . . . . . . . . . . . . Level 5 . | . . . . . . . . . . . . . . . High Security . | . . . . . . . . . . . . . . . Max Security . | . . . . . . . . . . . . . . . Peak Influence 126 | 10 93 37 . . 49 45 25 2 40 126 . . . . Initial 20 | . . . . . . 1 20 2 . . . . . . Average 13 | 1 25 1 . . 13 10 11 . 6 39 . . . . Influence Increases 1115 | 15 133 45 . . 56 115 9 . 99 248 240 30 . 125 Destroy 0b10 Robot/C 460 | . 100 20 . . 20 20 . . 60 100 80 . . 60 Destroy 0b10 Robot/NC 95 | 15 15 . . . 5 . 5 . 5 45 . . . 5 Destroy Leader 86 | . 12 10 . . 10 10 . . 10 24 10 . . . Successful Hack 53 | . . . . . . 25 4 . 5 19 . . . . Disable Machine 15 | . . . . . 15 . . . . . . . . . Destroy Structure 16 | . 6 . . . 6 . . . 4 . . . . . Partial Spotted 30 | . . . . . . . . . . 30 . . . . Lose Combat Pursuer 360 | . . 15 . . . 60 . . 15 30 150 30 . 60 Influence Decreases 1115 | 15 133 16 29 . 51 75 50 4 99 150 277 73 18 125 Entered New Map 128 | . . . 29 . . 4 25 2 . . 37 13 18 . Time Decay 830 | 15 133 16 . . 51 61 25 . 99 140 180 60 . 50 Lost Part 157 | . . . . . . 10 . 2 . 10 60 . . 75 Squads Dispatched 10 | . . . . . 2 3 . . 1 4 . . . . Investigation 3 | . . . . . . 1 . . . 2 . . . . Extermination 2 | . . . . . . . . . 1 1 . . . . Reinforcement 1 | . . . . . 1 . . . . . . . . . Assault 2 | . . . . . . 2 . . . . . . . . Garrison 2 | . . . . . 1 . . . . 1 . . . . Intercept . | . . . . . . . . . . . . . . . Searches Triggered . | . . . . . . . . . . . . . . . Construction Impeded . | . . . . . . . . . . . . . . . Haulers Reinforced . | . . . . . . . . . . . . . . . Active Scanning Responses . | . . . . . . . . . . . . . . . Cargo Convoy Interrupts . | . . . . . . . . . . . . . . . Stealth | -11 -10 -10 -10 -9 -8 -8 -7 -7 -6 -5 -5 -5 -5 -4 --------- Run | Yrd Mat Min Exi Min Mat Sto Fac DSF Fac Fac Upp Upp Zhi Pro Distress Signals 2 | . 1 . . . . 1 . . . . . . . . Communications Jammed . | . . . . . . . . . . . . . . . Distress Signals . | . . . . . . . . . . . . . . . Times Spotted 96 | . 11 2 . 2 4 24 . 3 5 15 15 3 . 12 Peak Tracking Total 22 | . 3 2 . 2 3 22 . 3 2 5 7 2 . 5 Tactical Retreats 13 | . . 1 . . . 2 . . 1 1 5 1 . 2 Traps | -11 -10 -10 -10 -9 -8 -8 -7 -7 -6 -5 -5 -5 -5 -4 ------- Run | Yrd Mat Min Exi Min Mat Sto Fac DSF Fac Fac Upp Upp Zhi Pro Traps Triggered 3 | . . . . . 1 1 . . 1 . . . . . Indirectly . | . . . . . . . . . . . . . . . Trap Hack Attempts . | . . . . . . . . . . . . . . . Triggered . | . . . . . . . . . . . . . . . Disarmed . | . . . . . . . . . . . . . . . Reprogrammed . | . . . . . . . . . . . . . . . Reused . | . . . . . . . . . . . . . . . Traps Extracted . | . . . . . . . . . . . . . . . Installed . | . . . . . . . . . . . . . . . Triggered . | . . . . . . . . . . . . . . . Machines | -11 -10 -10 -10 -9 -8 -8 -7 -7 -6 -5 -5 -5 -5 -4 ---------- Run | Yrd Mat Min Exi Min Mat Sto Fac DSF Fac Fac Upp Upp Zhi Pro Machines Disabled 1 | . . . . . 1 . . . . . . . . . Max in Single Turn 1 | . . . . . 1 . . . . . . . . . Machines Repaired . | . . . . . . . . . . . . . . . Machines Dismantled . | . . . . . . . . . . . . . . . Machines Sabotaged . | . . . . . . . . . . . . . . . Overloaded Fab Kills . | . . . . . . . . . . . . . . . Hacking | -11 -10 -10 -10 -9 -8 -8 -7 -7 -6 -5 -5 -5 -5 -4 --------- Run | Yrd Mat Min Exi Min Mat Sto Fac DSF Fac Fac Upp Upp Zhi Pro Machines Accessed 28 | . 1 . 2 . 1 6 1 . 1 6 1 . 9 . Terminals 13 | . 1 . . . 1 6 1 . . 4 . . . . Fabricators . | . . . . . . . . . . . . . . . Repair Stations 1 | . . . . . . . . . 1 . . . . . Recycling Units . | . . . . . . . . . . . . . . . Scanalyzers 1 | . . . . . . . . . . 1 . . . . Garrison Access 1 | . . . . . . . . . . 1 . . . . Total Hacks 111 | . 2 . 24 . 2 15 2 . 3 14 1 . 48 . Successful 89 | . . . 24 . . 5 1 . 1 9 1 . 48 . Failed 22 | . 2 . . . 2 10 1 . 2 5 . . . . Catastrophic 6 | . . . . . 2 2 . . 1 1 . . . . Database Lockouts . | . . . . . . . . . . . . . . . Manual 14 | . 4 . 1 . 2 4 . . . 3 . . . . Terminals 30 | . 2 . . . 2 15 2 . . 9 . . . . Fabricators . | . . . . . . . . . . . . . . . Repair Stations 3 | . . . . . . . . . 3 . . . . . Recycling Units . | . . . . . . . . . . . . . . . Scanalyzers 4 | . . . . . . . . . . 4 . . . . Garrison Access 1 | . . . . . . . . . . 1 . . . . Terminal Hacks 84 | . . . 24 . . 5 1 . . 5 1 . 48 . Record 65 | . . . 23 . . 1 . . . 5 . . 36 . Part Schematic 4 | . . . . . . . . . . . . . 4 . Robot Analysis 4 | . . . . . . . . . . . . . 4 . Prototype ID Bank 4 | . . . . . . . . . . . . . 4 . Open Door 5 | . . . . . . 4 . . . . 1 . . . Open DSF 1 | . . . . . . . 1 . . . . . . . Proto ID Catalog 1 | . . . 1 . . . . . . . . . . . Fabricator Hacks . | . . . . . . . . . . . . . . . Repair Station Hacks 1 | . . . . . . . . . 1 . . . . . Refit 1 | . . . . . . . . . 1 . . . . . Recycling Unit Hacks . | . . . . . . . . . . . . . . . Scanalyzer 4 | . . . . . . . . . . 4 . . . . Insert Component 1 | . . . . . . . . . . 1 . . . . Analyze 1 | . . . . . . . . . . 1 . . . . Retrieve Study 2 | . . . . . . . . . . 2 . . . . Garrison Access Hacks . | . . . . . . . . . . . . . . . Unauthorized Hacks . | . . . . . . . . . . . . . . . Terminals . | . . . . . . . . . . . . . . . Fabricators . | . . . . . . . . . . . . . . . Repair Stations . | . . . . . . . . . . . . . . . Recycling Units . | . . . . . . . . . . . . . . . Scanalyzers . | . . . . . . . . . . . . . . . Garrison Access . | . . . . . . . . . . . . . . . Data Cores Recovered 3 | . 1 . . . 1 . 1 . . . . . . . Used . | . . . . . . . . . . . . . . . Hacking Detections 13 | . 1 . . . 1 4 1 . 1 5 . . . . Full Trace Events 3 | . . . . . . 1 . . . 2 . . . . Feedback Events 1 | . . . . . . 1 . . . . . . . . Hackware Fried 1 | . . . . . . 1 . . . . . . . . Feedback Blocked . | . . . . . . . . . . . . . . . Robot Schematics Acquired . | . . . . . . . . . . . . . . . Robots Built . | . . . . . . . . . . . . . . . Authchips . | . . . . . . . . . . . . . . . Time . | . . . . . . . . . . . . . . . Total Robot Build Rating . | . . . . . . . . . . . . . . . Part Schematics Acquired 5 | . . . . . . . . . . 1 . . 4 . Parts Built . | . . . . . . . . . . . . . . . Authchips . | . . . . . . . . . . . . . . . Time . | . . . . . . . . . . . . . . . Total Part Build Rating . | . . . . . . . . . . . . . . . Part Studies Acquired 2 | . . . . . . . . . . 2 . . . . Parts Repaired . | . . . . . . . . . . . . . . . Time . | . . . . . . . . . . . . . . . Parts Recycled . | . . . . . . . . . . . . . . . Recycled Matter . | . . . . . . . . . . . . . . . Retrieved Matter . | . . . . . . . . . . . . . . . Retrieved Components . | . . . . . . . . . . . . . . . Parts Scanalyzed 1 | . . . . . . . . . . 1 . . . . Part Schematics Acquired 1 | . . . . . . . . . . 1 . . . . Parts Damaged . | . . . . . . . . . . . . . . . Bothacking | -11 -10 -10 -10 -9 -8 -8 -7 -7 -6 -5 -5 -5 -5 -4 ------------ Run | Yrd Mat Min Exi Min Mat Sto Fac DSF Fac Fac Upp Upp Zhi Pro Used RIF Installer . | . . . . . . . . . . . . . . . Robots Hacked . | . . . . . . . . . . . . . . . Non-combat . | . . . . . . . . . . . . . . . Combat . | . . . . . . . . . . . . . . . Robot Hacks Applied . | . . . . . . . . . . . . . . . Relay Couplers Released . | . . . . . . . . . . . . . . . Fabnet Peak Effective % . | . . . . . . . . . . . . . . . Robots Rewired . | . . . . . . . . . . . . . . . Allies Hacked . | . . . . . . . . . . . . . . . Hacks Repelled . | . . . . . . . . . . . . . . . Allies | -11 -10 -10 -10 -9 -8 -8 -7 -7 -6 -5 -5 -5 -5 -4 -------- Run | Yrd Mat Min Exi Min Mat Sto Fac DSF Fac Fac Upp Upp Zhi Pro Total Allies 2 | . . . . . . 2 . . . . . . . . Largest Group 2 | . . . . . . 2 . . . . . . . . Highest-Rated Group 62 | . . . . . . 62 . . . . . . . . Highest-Rated Ally 31 | . . . . . . 31 . . . . . . . . Total Orders . | . . . . . . . . . . . . . . . Ally Attacks 5 | . . . . . . 5 . . . . . . . . Total Damage 82 | . . . . . . 82 . . . . . . . . Kills . | . . . . . . . . . . . . . . . Allies Corrupted . | . . . . . . . . . . . . . . . Allies Melted . | . . . . . . . . . . . . . . . Intel | -11 -10 -10 -10 -9 -8 -8 -7 -7 -6 -5 -5 -5 -5 -4 ------- Run | Yrd Mat Min Exi Min Mat Sto Fac DSF Fac Fac Upp Upp Zhi Pro Active Infowar (turns) 1779 | 34 493 462 394 210 186 . . . . . . . . . Seismic 1779 | 34 493 462 394 210 186 . . . . . . . . . Robot Analysis Total 4 | . . . . . . . . . . . . . 4 . Derelict Logs Recovered 7 | . . 1 . 2 . . . . . . 2 1 . 1 Drone Launches . | . . . . . . . . . . . . . . . Drone Recoveries . | . . . . . . . . . . . . . . . Exploration | -11 -10 -10 -10 -9 -8 -8 -7 -7 -6 -5 -5 -5 -5 -4 ------------- Run | Yrd Mat Min Exi Min Mat Sto Fac DSF Fac Fac Upp Upp Zhi Pro Turns Passed 3746 | 136 493 462 394 210 186 274 68 41 423 321 363 126 97 152 Spaces Moved 5471 | 71 272 266 242 129 212 319 122 87 945 687 1086 459 317 257 Core 18 | 13 . . . 2 . . . . . . . . . 3 Treads 965 | 58 272 266 242 127 . . . . . . . . . . Legs . | . . . . . . . . . . . . . . . Wheels . | . . . . . . . . . . . . . . . Hover . | . . . . . . . . . . . . . . . Flight 4488 | . . . . . 212 319 122 87 945 687 1086 459 317 254 Fastest Speed 25 | 50 160 160 160 160 50 42 37 37 33 33 25 26 26 25 Average Speed 55 | 139 160 160 160 162 50 47 37 37 33 33 29 26 26 36 Slowest Speed 550 | 160 160 160 160 350 50 50 37 37 33 33 390 26 26 550 Overloaded Moves . | . . . . . . . . . . . . . . . Propulsion Burnouts . | . . . . . . . . . . . . . . . Robots Hopped 12 | . . . . . 2 3 . . 6 1 . . . . Potential Cave-ins . | . . . . . . . . . . . . . . . Cave-ins Triggered . | . . . . . . . . . . . . . . . Teleports 1 | . . . . . . . . . . . . . 1 . Exploration Rate (%) 44 | 4 51 57 60 36 18 48 3 87 22 24 88 70 62 34 Regions Visited 14 Branch Regions 8 Pre-discovered Areas 7 | . . 1 1 1 . . . . . . 1 . 3 . Known Exits Taken 1 | . . . . . . . 1 . . . . . . . Unknown Exits Taken 12 | 1 1 1 1 1 1 1 . . 1 1 1 1 1 . Scrap Searched 11 | . . . . 2 . . . . . . 3 3 . 3 Spaces Dug 8 | . . . . . 2 . . . 5 . . 1 . . Terrain Destroyed 18 | . 5 . . . 5 . . . 5 . . 1 . 2 Melee 8 | . . . . . 2 . . . 5 . . 1 . . Projectile 2 | . . . . . . . . . . . . . . 2 AOE 8 | . 5 . . . 3 . . . . . . . . . Terrain Rammed . | . . . . . . . . . . . . . . . Walls Destroyed . | . . . . . . . . . . . . . . . Machines Disabled . | . . . . . . . . . . . . . . . Actions | -11 -10 -10 -10 -9 -8 -8 -7 -7 -6 -5 -5 -5 -5 -4 --------- Run | Yrd Mat Min Exi Min Mat Sto Fac DSF Fac Fac Upp Upp Zhi Pro Total 5982 | 94 308 293 250 130 272 431 144 96 1022 740 1110 463 333 296 Wait 222 | . 5 21 . . 35 92 5 . 39 14 5 . . 6 Move 5433 | 70 271 265 241 128 207 312 121 86 932 684 1085 458 316 257 Hop 12 | . . . . . 2 3 . . 6 1 . . . . Pick Up 87 | 10 12 . 3 1 9 8 5 6 13 9 4 . 5 2 Fast Attach . | . . . . . . . . . . . . . . . Attach 53 | 7 . 1 . . 5 4 3 1 3 3 6 2 7 11 Detach 11 | . . . . . . 1 1 . . . . 2 2 5 Swap 21 | . 4 . 2 . 3 1 3 . 5 2 . . . 1 Drop 41 | . 5 . 4 . . 5 5 3 8 7 1 . 3 . Fire 32 | 7 11 4 . . 5 . . . . . . . . 5 Melee 67 | . . . . . 6 5 1 . 16 20 9 1 . 9 Ram . | . . . . . . . . . . . . . . . Kick . | . . . . . . . . . . . . . . . Crush 3 | . . 2 . 1 . . . . . . . . . . Escape Stasis . | . . . . . . . . . . . . . . . Rewire . | . . . . . . . . . . . . . . . Trap . | . . . . . . . . . . . . . . . Miscellaneous . | . . . . . . . . . . . . . . . Route ------- -11/Scrapyard -10/Materials (discovered 3 exits: [*Mat] / [*Min] / [*Sub]) -10/Mines (discovered 2 exits: [*Mat] / *Exi) -10/Exiles -9/Mines -8/Materials -8/Storage -7/Factory (discovered 2 exits: Low / DSF) -7/DSF -6/Factory -5/Factory -5/Upper Caves -5/Upper Caves -5/Zhirov -4/Proximity Caves History --------- Turn | Location | Event 8 | -11/Scrapyard | Discovered new exit (range 14) 137 | -11/Scrapyard | Entered Materials 306 | -10/Materials | Build established: Mutant 405 | -10/Materials | Discovered new exit (range 13) 451 | -10/Materials | Discovered new exit (range 12) 612 | -10/Materials | Discovered new exit (range 9) 630 | -10/Materials | Entered Mines 739 | -10/Mines | Learned location of Mines (-9) 882 | -10/Mines | Discovered new exit (range 8) 1084 | -10/Mines | Deemed a non-threat by the Exiles lab entrance 1085 | -10/Mines | Discovered new exit (range 5) 1092 | -10/Mines | Entered Exiles 1134 | -10/Exiles | Met 8R-AWN 1160 | -10/Exiles | Met EX-HEX 1204 | -10/Exiles | Met EX-BIN 1227 | -10/Exiles | Aligned with FarCom system 1228 | -10/Exiles | Given EX-Vault access code 1265 | -10/Exiles | Opened EX-Vault 1284 | -10/Exiles | Found Flying Fortress v7 1314 | -10/Exiles | Warned to stay clear of 0b10 Research branches 1359 | -10/Exiles | Met EX-DEC 1368 | -10/Exiles | Learned location of Zion (-6) 1462 | -10/Exiles | Discovered new exit (range 14) 1486 | -10/Exiles | Left Exiles lab with Flying Fortress v7 1486 | -10/Exiles | Entered Mines 1487 | -9/Mines | Learned location of Storage (-8) 1539 | -9/Mines | Learned 2 Materials zone layouts 1608 | -9/Mines | Discovered new exit (range 8) 1672 | -9/Mines | Assembled infested the area 1695 | -9/Mines | Core integrity fell below 50% 1696 | -9/Mines | Entered Materials 1696 | -8/Materials | Evolved 4 slots: Propulsion x3, Utility x1 1723 | -8/Materials | Lost 5 parts (1p2n2w) 1795 | -8/Materials | Garrison activated, responded to threat 1812 | -8/Materials | Discovered new exit (range 14) 1882 | -8/Materials | Entered Storage 1911 | -8/Storage | Met a pair of Derelict thieves 2088 | -8/Storage | System Shield fried by hacking feedback 2153 | -8/Storage | Discovered new exit (range 6) 2156 | -8/Storage | Entered Factory 2156 | -7/Factory | Evolved 2 slots: Power x1, Propulsion x1 2157 | -7/Factory | Identified exit to Lower Caves 2224 | -7/Factory | Identified exit to DSF 2224 | -7/Factory | Entered DSF 2247 | -7/DSF | Additional patrols routed to DSF 2261 | -7/DSF | Discovered new exit (range 11) 2265 | -7/DSF | Entered Factory 2265 | -6/Factory | Evolved 2 slots: Propulsion x1, Utility x1 2533 | -6/Factory | Found Prototype Processor 2556 | -6/Factory | Build established: Sprinter 2686 | -6/Factory | Discovered new exit (range 4) 2688 | -6/Factory | Entered another Factory area 2688 | -5/Factory | Evolved 2 slots: Utility x2 2962 | -5/Factory | Garrison activated, responded to threat 2992 | -5/Factory | Discovered new exit (range 16) 3009 | -5/Factory | Entered Upper Caves 3213 | -5/Upper Caves | Lost 5 parts (2p3n) 3251 | -5/Upper Caves | Attracted the attention of an 0b10 checkpoint 3280 | -5/Upper Caves | Encountered a Warlord checkpoint 3297 | -5/Upper Caves | Spotted B-75 Beast 3369 | -5/Upper Caves | Learned location of Armory (-4) 3369 | -5/Upper Caves | Discovered new exit (range 11) 3372 | -5/Upper Caves | Entered another Upper Caves area 3377 | -5/Upper Caves | Learned Factory terminal intel 3383 | -5/Upper Caves | Encountered a Warlord checkpoint 3445 | -5/Upper Caves | Attacked by a delusional Derelict stockpiling parts 3491 | -5/Upper Caves | Build established: Hacker-Sprinter 3495 | -5/Upper Caves | Discovered new exit (range 8) 3498 | -5/Upper Caves | Entered Zhirov 3498 | -5/Zhirov | Discovered new exit (range 4) 3503 | -5/Zhirov | Met Zhirov 3509 | -5/Zhirov | Learned location of Quarantine (-3) 3509 | -5/Zhirov | Learned location of Testing (-2) 3509 | -5/Zhirov | Learned location of Command (-1) 3515 | -5/Zhirov | Zhirov requested help retrieving the SGEMP Prototype 3545 | -5/Zhirov | Found Alien Artifact 3547 | -5/Zhirov | Identified Transdimensional Reconstructor 3547 | -5/Zhirov | Warped through subspace 3558 | -5/Zhirov | Found Alien Artifact 3559 | -5/Zhirov | Identified Integrated Reactor 3559 | -5/Zhirov | Installed Integrated Reactor, increased core energy generation (+10) 3595 | -5/Zhirov | Entered Proximity Caves 3638 | -4/Proximity Caves | Unaware initiated a cargo recovery operation 3643 | -4/Proximity Caves | Learned Research emergency access door positions 3717 | -4/Proximity Caves | Core integrity fell below 50% 3736 | -4/Proximity Caves | Core integrity fell below 20% 3747 | -4/Proximity Caves | Destroyed by G-67 Veteran with Plasma Rifle Last Messages --------------- 03696_ Slug penetrates G-67 Veteran. 03700_ Slug penetrates Wall. 03701_ Lgt. Fission Core destroyed. 03701_ Imp. Hacking Suite destroyed. 03702_ Slug penetrates G-67 Veteran. 03702_ Slug penetrates Wall. 03704_ Imp. Flight Unit destroyed. 03711_ Chainsword+ destroyed. 03711_ Critical hit (Burn: +50). 03713_ Lgt. Nuclear Core destroyed. 03719_ Shock Maul destroyed. 03720_ Cld. Cesium-ion Thruster destroyed. 03725_ Discarded Adv. Melee Analysis Suite. 03731_ Critical hit (Burn: +37). 03739_ G-67 Veteran Field Laser severed. 03743_ Exp. Core Shielding destroyed. 03744_ Chainsword+ destroyed. 03744_ Fusion Reactor destroyed. 03746_ Lrg. Storage Unit destroyed. [Achievement: This Is Interesting...] Map ----- +----------------------------------------------------+ | ?????????????????????????????????????????????????? | | ?????????????????????????????????????????????????? | | ?????????????????????????????????????????????????? | | ?????????????????????????????????????????????????? | | ?????????????????????????????????????????????????? | | ?????????????????????????????????????????????????? | | ?????????????????????????????????????????????????? | | ?????????????????????????????????????????????????? | | ?????????????????????????????????????????????????? | | ??????????????????????????????#################??? | | ??????????????????????????????# #??? | | ??????????????????????????????# #??? | | ??????????????????????????????# ## #??? | | ??????????????###?????????????# " "" ## #??? | | ??????????????# #????????????# """" "" "## #??? | | ??????????????# #????????#### #"" """ "# #??? | | ??????????????# ######?## # ## "" " #??? | | ???????????????# ### ##" """"" #??? | | ????????######## ## ##" " #??? | | ????????# !% #??? | | ????????# #???## #??? | | ????????# #????### ## ## # ###### ########??? | | ????????# ##?####???# ### ## #????####?????????? | | ???????## ### ##### ### ####?????????????????? | | ???????# ## g ##???????????????????? | | ???##### @g #???????????????????? | | ??## ## g ##??????????????????? | | ### ## ##### ;# ##?????????????????? | | ## #???##### ##### #?????????????????? | | ### *!###??????## #??# #????????????????? | | ##?#!%##????????# #??# ?????????????? | | ##??#! #?????????## ##??# #???????????? | | #?? #??????????####??? ## #???????????? | | #? #????????????????? #?? #???????????? | | ## ####?????????????????# #???#???????????? | | ## ?????????????????????# ##???????????????? | | ## ?????????????????????? ###????????????????? | | ## ?????????????????????? ##??????????????????? | | #???????????????????????####???????????????????? | | #??????????????????????????????????????????? | | #?????????????????????????????????????????? | | ????????????????????????????????????????? | | #?????????????????????????????????????????? | | ? ??##?????????????????????????????????????????? | | ?????????????????????????????????????????????????? | | ?????????????????????????????????????????????????? | | ?????????????????????????????????????????????????? | | ?????????????????????????????????????????????????? | | ?????????????????????????????????????????????????? | | ?????????????????????????????????????????????????? | +----------------------------------------------------+ Best States ------------- Heat Dissipation 40 Energy Generation 33 Energy Capacity 295 Matter Stores 450 Matter Capacity 450 Sight Range 16 Terrain Scan Density 10 Armor Coverage 225 Core Shielding 40 Propulsion Shielding 66 Evasion (%) 65 Melee Accuracy 24 Recoil Reduction 2 Offensive Hacking 40 Defensive Hacking 10 Item Schematics ----------------- Imp. Flight Unit | -5/Factory | Scanalyzed Assault Drone Bay | -5/Zhirov | Free Exp. Heat Sink | -5/Zhirov | Free Exp. Optical Array | -5/Zhirov | Free Imp. Arc Thrower | -5/Zhirov | Free Robot Schematics ------------------ None Fabricated ------------ Nothing Repaired ---------- Nothing Studied --------- Lgt. Angular Momentum Engine | -5/Factory | Hacked Chainsword | -5/Factory | Hacked Alien Tech Used ----------------- Transdimensional Reconstructor Integrated Reactor Achievements -------------- Alien Tech Fitting Room Item+ Look Less Dangerous Next Time Subspace Traveler The Science Guy This Is Interesting... Challenges ------------ None Game ------ Seed InertialCooledBlasthammer Manual? 0 Play Time 01:05:55 Cumulative 22.2 hours Start 2026.09.01 @ 21:13:40 End 2026.09.01 @ 22:20:47 Sessions 1 Manual Loads 0 Difficulty Rogue Special Mode None Game No. 43 Rogue 42 Adventurer 1 Explorer 0 Win Type - Total 0 Types 0/0/0/0/0/0/0/0/0/0 Lore% 27 Gallery% 26 Achievement% 23 Wizard Run 0 Options --------- Layout 0 ASCII 0 Keyboard 0 Movement Mouse Keybinds 0 Fullscreen 2 Font 18/SmallcapsGlow Map View 38x25 Zoom Use 97% Tactical HUD 1 Map Filters NONE Filters NONE Steam 1 RUN: 82fc3351-5961-4853-81ae-204e5bc5c58e